[Event "Reykjavik Open 2024"]
[Site "Reykjavik"]
[Date "2024.03.20"]
[Round "8.13"]
[White "Cornette, Matthieu"]
[Black "Jacobsen, Mikkel Manosri"]
[Result "1/2-1/2"]
[ECO "B12"]
[WhiteElo "2575"]
[BlackElo "2367"]
[Annotator "TA"]
[PlyCount "59"]
[EventDate "2024.03.12"]
[EventCountry "ISL"]
[SourceTitle "playchess.com"]
[Source "ChessBase"]
[SourceQuality "1"]
[TimeControl "40/5400+30:1800+30"]

{[%evp 14,59,6,0,0,0,22,17,32,22,0,0,44,44,17,0,36,-42,-69,-50,-55,-114,-120,-114,-51,-45,-33,-35,-47,-38,-37,-100,-24,-31,0,0,0,0,0,0,0,0,0,-2,-9,-7,0,0]} 1. e4 {[%emt 0:01:27]} c6 {[%emt 0:00:05]} 2. d4 {[%emt 0:00:16]} d5 {[%emt 0:00:06]} 3. e5 {[%emt 0:00:17]} Bf5 {[%emt 0:00:10]} 4. h4 {[%emt 0:00:45]} h5 {[%emt 0:00:06]} 5. c4 {[%emt 0:00:24]} e6 {[%emt 0:01:13]} 6. Nc3 {[%emt 0:00:14]} dxc4 {[%emt 0:02:33]} 7. Bxc4 {[%emt 0:00:56]} Nd7 {[%emt 0:00:09]} 8. Nge2 {[%emt 0:00:44]} Be7 {[%emt 0:00:55]} 9. g3 {[%emt 0:00:30]} b5 {[%emt 0:02:22][%cal Bb7b5,Bb5b4][%mdl 32]} 10. Bb3 {[%emt 0:01:59]} b4 {[%emt 0:00:21]} 11. Nb1 {[%emt 0:01:11]} Nh6 {[%emt 0:22:33]} 12. O-O {[%emt 0:06:52]} g5 {[%emt 0:00:24]} 13. hxg5 {[%emt 0:02:58]} Bxg5 {[%emt 0:01:22]} 14. Bxg5 {[%emt 0:01:21]} Qxg5 {[%emt 0:00:06]} 15. Qc1 {[%emt 0:09:46]} (15. Nd2 $14) 15... Qxc1 $15 {[%emt 0:01:45]} 16. Rxc1 {[%emt 0:00:10]} Bg4 {[%emt 0:06:04]} 17. Bd1 {[%emt 0:12:18]} (17. Nf4 $15 Nf5 18. Rc4) 17... Nf5 $17 {[%emt 0:04:23]} 18. Rc4 {[%emt 0:00:09]} Rb8 {[%emt 0:03:35]} (18... Rd8 $17 {[%cal Od7e5]} 19. Rxb4 (19. Rxc6 $2 {loses.} Bxe2 20. Bxe2 Nxd4 $19) 19... a5) 19. Nd2 $15 {[%emt 0:09:42]} Nb6 {[%emt 0:02:48]} 20. Rc5 {[%emt 0:05:26] [#] Strongly threatening f3.} ({Much weaker is} 20. Rxb4 Bxe2 21. Bxe2 a5 $17) 20... Bxe2 {[%emt 0:06:42]} 21. Bxe2 {[%emt 0:00:03]} Nxd4 {[%emt 0:00:07]} 22. Bf3 {[%emt 0:03:34]} ({White should play} 22. Bd1 $15) 22... Nd7 {[%emt 0:14:39] A dynamic duo of knights.} (22... Rd8 $17 {Threatens to win with ...h4.} 23. a3 b3) 23. Bxc6 $11 {[%emt 0:05:11]} Rc8 {[%emt 0:02:58]} 24. Bxd7+ {[%emt 0:00:29] The position is equal.} Kxd7 {[%emt 0:00:32]} 25. Ra5 {[%emt 0:00:31]} Nc6 {[%emt 0:06:26]} 26. Ra6 {[%emt 0:04:50]} Nxe5 {[%emt 0:04:42]} 27. Rxa7+ {[%emt 0:09:59]} Rc7 {[%emt 0:00:10]} 28. Ra5 {[%emt 0:10:52]} Nd3 {[%emt 0:01:41]} 29. Nf3 {[%emt 0:01:48]} Rhc8 {[%emt 0:00:55]} 30. Ne5+ {[%emt 0:04:45] Weighted Error Value: White=0.15 (very precise) /Black=0.16 (very precise) .  Mistake:       	White=3     	Black=2      Inaccurate:     	---       	Black=3      OK:         	White=11    	Black=8      Best:        	---       	Black=3} 1/2-1/2